bitfinex/quotes_ETHUSD_20251116
["timestamp","ask_amount","ask_price","bid_price","bid_amount"]
[1763310800189,0.341,3083.7,3082.6,1.1337408]
[1763310800426,0.341,3083.7,3082.6,2.16675768]
[1763310801009,0.4506,3083.6,3082.6,2.16675768]
[1763310801211,0.4506,3083.6,3082.0,0.1309]
[1763310801212,0.03253739,3083.5,3082.0,0.1309]
[1763310801426,0.405504,3083.5,3082.0,0.1309]
[1763310801742,0.4506,3083.4,3082.2,1.1337408]
[1763310801942,0.4506,3083.4,3082.3,6.48866106]
[1763310802145,0.341,3083.7,3082.4,1.1337408]
[1763310802353,0.341,3083.7,3082.7,1.1337408]
[1763310802643,0.341,3083.7,3082.5,1.12654324]
[1763310802644,0.341,3083.7,3083.6,0.1309]
[1763310803146,0.341,3083.7,3083.6,0.5296]
[1763310803708,0.341,3083.7,3083.6,10.86657284]
[1763310803909,0.002,3084.5,3083.9,1.5392448]
[1763310804137,0.32437408,3086.3,3083.9,1.5392448]
[1763310804138,0.32437408,3086.3,3085.1,1.1337408]
[1763310804346,0.32437408,3086.3,3085.2,0.1329]
[1763310804711,0.4506,3086.2,3085.2,0.1329]
[1763310804917,0.4506,3086.2,3084.9,0.1329]
[1763310805508,0.67429741,3086.2,3084.9,0.1329]
[1763310805947,0.67429741,3086.2,3085.1,1.1337408]
[1763310806359,0.1932,3085.2,3082.2,0.1801]
[1763310806663,0.405504,3083.8,3082.2,3.42451017]
[1763310806846,0.1373,3083.9,3082.3,0.4673]
[1763310807048,0.1373,3083.9,3082.4,1.78705057]
[1763310807232,0.88864139,3083.8,3082.2,0.1801]
[1763310807438,0.856104,3083.8,3082.2,6.66895826]
[1763310807622,0.405504,3083.6,3082.3,0.66689583]
[1763310808047,0.4506,3083.5,3082.3,3.91121167]
[1763310808248,0.43804139,3083.4,3081.5,3.24614494]
[1763310808438,0.43804139,3083.4,3081.5,0.001]
[1763310808439,0.1932,3081.6,3081.5,0.001]
[1763310808648,0.598704,3081.6,3081.5,0.001]
[1763310808848,0.598704,3081.6,3081.1,0.001]
[1763310808849,0.405504,3081.5,3081.1,0.001]
[1763310809075,0.856104,3081.5,3081.1,0.001]
[1763310809446,0.405504,3081.3,3080.8,0.001]
[1763310809863,0.405504,3081.1,3080.8,0.001]
[1763310810247,0.4506,3081.0,3080.8,0.001]
[1763310810447,0.405504,3080.9,3080.8,0.001]
[1763310810649,0.4506,3081.0,3080.8,0.001]
[1763310811067,0.405504,3080.9,3080.8,0.001]
[1763310811575,0.856104,3080.9,3080.8,0.001]
[1763310813555,0.405504,3080.8,3078.6,0.1801]
[1763310813755,0.405504,3079.3,3078.0,0.001]
[1763310813968,0.405504,3079.1,3078.1,0.0008]
[1763310814281,0.405504,3079.1,3078.0,0.001]
[1763310814581,0.598704,3078.1,3078.0,0.001]
[1763310814782,0.405504,3078.9,3078.0,0.001]
[1763310814946,0.1943,3078.7,3078.0,0.001]
[1763310815146,0.1943,3078.7,3078.0,0.32600574]
[1763310815367,0.856104,3079.0,3078.0,0.32600574]
[1763310815368,0.4506,3079.0,3078.0,1.45974654]
[1763310815579,0.405504,3078.9,3078.0,1.45974654]
[1763310815756,0.4506,3079.0,3078.0,1.45974654]
[1763310815955,0.4706,3079.3,3078.0,0.32600574]
[1763310816176,0.405504,3079.2,3078.0,0.001]
[1763310816661,0.405504,3079.0,3078.0,0.001]
[1763310817055,0.4706,3078.9,3078.0,0.001]
[1763310817282,0.405504,3078.8,3078.0,0.001]
[1763310817643,0.405504,3078.6,3078.0,0.001]
[1763310818153,0.405504,3078.4,3078.0,0.001]
[1763310818542,0.50970516,3079.0,3078.0,0.001]
[1763310818543,0.405504,3078.2,3078.0,0.001]
[1763310818767,0.50970516,3079.0,3078.0,0.001]
[1763310818768,0.876104,3078.1,3078.0,0.001]
[1763310819754,0.405504,3078.6,3078.0,0.001]
[1763310820611,0.50970516,3079.0,3078.0,0.001]
[1763310820807,0.1922,3079.4,3078.0,0.001]
[1763310820947,0.98020816,3079.0,3078.0,0.001]
[1763310821345,0.405504,3078.8,3078.0,0.001]
[1763310821747,0.4706,3078.9,3078.0,0.001]
[1763310821748,0.405504,3078.6,3078.0,0.001]
[1763310821949,0.405504,3078.4,3077.6,0.001]
[1763310822158,0.05,3078.6,3077.4,0.001]
[1763310822159,0.87010143,3077.7,3077.4,0.001]
[1763310822655,0.1943,3077.8,3077.4,0.001]
[1763310822656,0.4706,3077.6,3077.4,0.001]
[1763310824162,0.405504,3077.5,3077.4,0.001]
[1763310824584,0.876104,3077.5,3077.4,0.001]
[1763310827508,0.1943,3077.8,3077.4,0.001]
[1763310827662,0.1943,3078.0,3077.4,0.001]
[1763310828064,0.405504,3077.8,3077.4,0.001]
[1763310828292,0.03253739,3077.7,3077.4,0.001]
[1763310828601,0.405504,3077.6,3077.4,0.001]
[1763310829097,0.90864139,3077.5,3077.4,0.001]
[1763310829398,0.876104,3077.5,3077.4,0.001]
[1763310830574,1.38605351,3077.5,3077.4,0.001]
[1763310831811,1.38605351,3077.5,3076.7,0.001]
[1763310831812,0.876104,3077.4,3076.7,0.001]
[1763310832115,0.876104,3077.4,3074.4,0.1697905]
[1763310832116,0.87290262,3076.7,3074.8,0.1973]
[1763310832297,0.6332,3076.6,3074.9,0.4842]
[1763310832498,0.6332,3076.6,3074.4,0.1697905]
[1763310832499,2.0972,3076.6,3074.4,0.1697905]
[1763310832685,2.01766514,3076.5,3074.4,0.1697905]
[1763310833012,0.4706,3076.4,3074.4,0.1697905]
[1763310833215,0.05,3076.1,3074.4,0.1697905]
[1763310833509,0.4706,3076.0,3074.4,0.1697905]
[1763310833974,0.05,3075.7,3074.4,0.1697905]
[1763310834189,0.05,3075.7,3073.7,0.4842]
[1763310834190,0.05,3075.8,3073.7,3.73751808]
[1763310834370,1.49706514,3076.5,3073.8,0.39348181]
[1763310834371,0.405504,3075.7,3073.8,0.39348181]
[1763310834598,0.405504,3076.1,3073.8,0.87768181]
[1763310834783,0.05,3075.8,3073.8,0.39348181]
[1763310834998,0.05,3075.8,3073.9,0.4842]
[1763310834999,0.405504,3075.8,3073.9,0.4842]
[1763310835201,0.405504,3075.8,3073.6,6.70424976]
[1763310835202,0.405504,3075.6,3073.6,0.1973]
[1763310835384,0.405504,3075.4,3073.7,3.73760794]
[1763310835710,0.405504,3075.4,3073.7,0.4842]
[1763310836072,0.1943,3075.5,3073.8,1.65472208]
[1763310836272,0.4706,3075.4,3074.0,3.25309043]
[1763310836483,0.405504,3075.3,3074.0,6.50618086]
[1763310836709,0.1943,3075.5,3074.1,0.4842]
[1763310837311,0.03253739,3076.2,3074.1,0.4842]
[1763310837609,0.50313739,3076.2,3074.1,0.4842]
[1763310837802,0.50313739,3076.2,3074.2,1.02434713]
[1763310837973,0.405504,3076.1,3074.2,1.02434713]
[1763310838175,0.405504,3075.9,3074.3,0.4842]
[1763310838375,0.43804139,3075.9,3074.4,6.50533436]
[1763310838608,0.4706,3076.8,3074.4,9.75800154]
[1763310838795,0.03253739,3076.1,3074.5,1.50842015]
[1763310838997,0.6332,3076.6,3074.5,1.50842015]
[1763310839208,0.4706,3076.5,3074.6,0.5966]
[1763310839385,0.405504,3076.5,3074.6,0.5966]
[1763310839707,0.1626,3076.6,3074.6,0.5966]
[1763310839907,0.1626,3076.6,3074.7,0.2754561]
[1763310840313,0.405504,3076.5,3074.9,3.25213828]
[1763310840814,0.405504,3076.5,3075.0,0.4842]
[1763310840978,0.51011193,3076.4,3075.0,1.6179408]
[1763310841315,0.03253739,3077.0,3076.3,0.1973]
[1763310841485,0.80320252,3077.9,3076.3,0.1973]
[1763310841486,0.28277834,3077.8,3076.3,0.1973]
[1763310841675,0.28277834,3077.8,3076.4,0.4842]
[1763310841676,0.30639382,3077.8,3076.4,0.4842]
[1763310841877,1.465,3078.0,3076.4,0.4842]
[1763310842128,0.1943,3078.6,3076.4,0.4842]
[1763310842481,0.50313739,3078.5,3076.4,0.4842]
[1763310842678,0.05,3078.1,3076.1,0.1973]
[1763310842914,0.405504,3077.9,3074.6,0.1124]
[1763310843119,0.405504,3077.3,3074.8,0.4842]
[1763310843330,0.405504,3077.1,3074.8,0.4842]
[1763310843488,0.405504,3076.9,3075.8,0.001]
[1763310843690,0.4706,3077.8,3075.8,0.001]
[1763310843883,0.5104931,3077.7,3075.9,0.4842]
[1763310844435,0.28365571,3077.6,3076.0,6.50195058]
[1763310844737,0.03253739,3077.5,3076.1,0.69861506]
[1763310845036,0.28373681,3077.6,3076.1,1.17821506]
[1763310845271,0.36499021,3079.9,3078.2,0.95991586]
[1763310845391,1.8457457,3082.9,3077.5,8.7715528]
[1763310845392,8.82227248,3082.3,3080.1,4.0087549]
[1763310845617,8.82227248,3082.3,3078.4,1.1337408]
[1763310845618,0.4818,3082.3,3078.6,1.1337408]
[1763310845864,0.4838,3081.2,3078.9,3.428]
[1763310846073,2.40464569,3080.7,3078.8,0.405504]
[1763310846213,2.08727757,3080.7,3080.2,2.3037074]
[1763310846417,0.002,3081.2,3080.3,0.69426056]
[1763310846647,0.002,3081.2,3080.4,0.69426056]
[1763310846846,0.002,3081.2,3080.5,3.59404721]
[1763310847067,0.002,3081.2,3080.6,0.69426056]
[1763310847212,0.002,3081.2,3080.7,0.69426056]
[1763310847417,0.002,3081.2,3080.7,6.90160333]
[1763310847670,0.002,3081.2,3081.1,2.30594265]
[1763310847814,0.002,3081.2,3081.1,0.69426056]
[1763310848215,0.002,3081.2,3081.1,3.94075466]
[1763310848443,0.002,3081.2,3081.1,5.07449546]
[1763310848750,0.002,3081.2,3081.1,7.37525331]
[1763310849060,0.002,3081.2,3081.1,2.99501841]
[1763310849301,0.002,3081.2,3081.1,0.69426056]
[1763310849554,0.002,3081.2,3080.5,0.86129946]
[1763310849555,0.405504,3081.1,3080.5,0.86129946]
[1763310849753,0.405504,3081.1,3080.1,0.86129946]
[1763310850052,0.4838,3081.2,3080.0,0.86129946]
[1763310850053,0.405504,3080.9,3080.0,0.86129946]
[1763310850255,0.405504,3080.9,3079.7,0.86129946]
[1763310850558,0.405504,3080.7,3079.1,0.86129946]
[1763310850850,0.405504,3080.7,3079.2,0.86129946]
[1763310851052,0.405504,3080.5,3079.2,0.86129946]
[1763310851252,0.4818,3080.6,3079.3,0.86129946]
[1763310851549,0.002,3081.2,3079.3,0.86129946]
[1763310851550,0.4818,3081.1,3079.8,0.86129946]
[1763310851753,0.002,3081.2,3079.8,1.34089946]
[1763310851958,0.51131532,3081.2,3080.1,0.86129946]
[1763310852156,0.51131532,3081.2,3080.0,0.86129946]
[1763310852348,0.51131532,3081.2,3080.1,3.24664783]
[1763310852546,0.51131532,3081.2,3080.0,3.24673467]
[1763310852723,0.002,3081.2,3080.0,0.86129946]
[1763310853103,0.405504,3081.0,3079.2,0.86129946]
[1763310853221,0.405504,3081.0,3079.0,0.86129946]
[1763310853422,0.002,3081.2,3078.3,0.1529]
[1763310853423,0.405504,3080.8,3078.9,0.86129946]
[1763310853622,0.405504,3080.8,3078.3,0.1529]
[1763310853834,0.405504,3080.6,3078.4,3.24844074]
[1763310854038,0.05,3080.9,3078.3,0.1529]
[1763310854039,0.405504,3080.4,3078.3,0.1529]
[1763310854221,0.405504,3080.4,3078.3,6.64997889]
[1763310854445,0.405504,3080.2,3078.3,6.64997889]
[1763310854622,0.405504,3080.2,3078.3,0.1529]
[1763310854819,0.05,3080.9,3078.6,0.86129946]
[1763310854820,0.405504,3080.0,3078.6,0.86129946]
[1763310855050,0.405504,3080.0,3078.7,0.86129946]
[1763310855254,0.05,3080.9,3078.3,3.40144627]
[1763310855255,0.405504,3079.8,3078.6,0.86129946]
[1763310855654,0.405504,3079.6,3078.5,0.86129946]
[1763310855957,0.405504,3079.6,3078.4,0.86129946]
[1763310856163,0.405504,3079.4,3078.4,0.86129946]
[1763310856457,0.405504,3079.4,3078.3,0.86129946]
[1763310856766,0.6721,3079.5,3077.9,4.97147759]
[1763310856767,0.405504,3079.2,3077.9,0.86129946]
[1763310856986,0.4801,3079.3,3077.2,0.0976]
[1763310857171,0.405504,3079.0,3077.2,0.0976]
[1763310857370,2.5977408,3079.1,3077.1,4.11110727]
[1763310857371,0.405504,3078.8,3077.1,0.86129946]
[1763310857572,0.405504,3078.8,3076.2,2.3458231]
[1763310857573,0.405504,3078.8,3077.0,0.86129946]
[1763310857774,0.78042448,3078.9,3076.6,0.86129946]
[1763310857775,0.405504,3078.6,3076.6,0.86129946]
[1763310857979,0.192,3076.7,3076.4,0.86129946]
[1763310858288,0.18599743,3076.7,3076.0,2.53127374]
[1763310858447,0.18599743,3076.7,3076.1,1.62244539]
[1763310858652,0.405504,3077.3,3076.1,2.73211933]
[1763310858870,0.405504,3077.3,3076.1,1.10967394]
[1763310859062,0.405504,3077.3,3076.1,5.98297919]
[1763310859266,0.405504,3077.3,3076.1,0.24837448]
[1763310859463,0.405504,3077.3,3076.0,4.92092757]
[1763310859769,0.4801,3077.3,3075.9,0.86129946]
[1763310859950,0.4801,3077.3,3075.8,0.001]
[1763310859951,0.405504,3077.2,3075.8,0.86229946]
[1763310860151,0.405504,3077.0,3075.8,0.001]
[1763310860640,0.597504,3077.0,3075.8,3.25217784]
[1763310860892,0.4801,3076.9,3075.8,0.63596343]
[1763310861095,0.405504,3076.8,3075.8,0.001]
[1763310861588,0.405504,3076.6,3075.8,0.001]
[1763310861801,0.4801,3076.7,3075.8,0.001]
[1763310861957,0.405504,3076.7,3075.8,0.001]
[1763310862300,0.885604,3076.7,3075.8,0.001]
[1763310862668,0.51000954,3076.5,3075.8,0.001]
[1763310863110,0.4801,3077.2,3075.9,0.1589]
[1763310863259,1.464,3077.6,3076.0,1.54820349]
[1763310863461,1.464,3077.6,3076.1,2.18241384]
[1763310863704,1.464,3077.6,3076.2,0.68828914]
[1763310863705,0.4801,3077.5,3076.2,0.68828914]
[1763310863868,0.4801,3077.5,3076.1,0.17071035]
[1763310864069,0.4801,3077.5,3075.9,0.1589]
[1763310864412,0.4801,3077.5,3076.0,2.35851963]
[1763310864413,0.405504,3077.4,3076.0,2.35851963]
[1763310864607,0.405504,3077.4,3076.1,0.68854535]
[1763310864887,0.405504,3077.3,3076.2,0.68854535]
[1763310865188,0.405504,3077.3,3075.9,5.06748184]
[1763310865503,0.405504,3077.3,3076.0,1.28211491]
[1763310865656,0.405504,3077.3,3076.1,0.68927529]
[1763310865857,1.464,3077.8,3076.2,0.68927529]
[1763310866096,0.192,3078.4,3076.3,2.68293044]
[1763310866256,0.192,3078.4,3076.5,2.52331354]
[1763310866257,0.50989708,3077.6,3076.5,2.52331354]
[1763310866461,0.50989708,3077.6,3076.6,1.01053417]
[1763310866657,0.50989708,3077.6,3076.7,0.68927529]
[1763310866907,0.50989708,3077.6,3076.4,1.60821238]
[1763310867112,7.19354384,3079.8,3077.5,0.0976]
[1763310867259,0.4801,3079.1,3077.5,0.0976]
[1763310867455,0.05,3080.3,3077.5,0.0976]
[1763310867456,0.50976007,3078.7,3077.6,0.68994503]
[1763310867655,0.4801,3079.4,3077.7,0.68994503]
[1763310867963,0.192,3079.7,3077.8,0.68985295]
[1763310868233,0.4801,3080.0,3078.1,0.86231619]
[1763310868453,0.4801,3080.0,3078.0,1.64671401]
[1763310868454,0.192,3080.1,3078.2,1.55216914]
[1763310868649,1.9441,3080.5,3078.5,1.1337408]
[1763310868910,1.9441,3080.5,3078.6,0.68985295]
[1763310869113,0.4801,3080.4,3078.7,0.68985295]
[1763310869347,0.19441,3080.3,3078.7,0.4635]
[1763310869510,0.19441,3080.3,3078.8,0.4635]
[1763310869914,0.4801,3080.4,3078.9,0.69045432]
[1763310870116,0.4801,3080.4,3078.8,0.4635]
[1763310870317,1.466,3080.8,3078.9,0.69057532]
[1763310870535,1.466,3080.8,3079.3,7.19354384]
[1763310870844,0.50944955,3080.4,3079.4,7.64873621]
[1763310871052,0.002,3080.8,3079.5,2.17469251]
[1763310871240,0.002,3080.8,3079.6,0.4635]
[1763310871434,0.002,3080.8,3079.3,13.68849479]
[1763310871435,0.002,3080.8,3079.3,7.19354384]
[1763310871772,0.002,3080.8,3079.4,2.38539222]
[1763310871970,0.002,3080.8,3079.4,1.6948408]
[1763310872159,0.002,3080.8,3079.4,2.12017926]
[1763310872368,0.002,3080.8,3079.3,7.19354384]
[1763310872369,0.4801,3080.7,3079.3,7.19354384]
[1763310872547,0.405504,3080.6,3079.3,7.19354384]
[1763310872880,0.002,3080.8,3079.3,7.19354384]
[1763310872881,0.002,3080.8,3079.4,3.71088585]
[1763310873083,0.002,3080.8,3079.5,0.69040619]
[1763310873270,0.002,3080.8,3079.5,0.4635]
[1763310873468,0.002,3080.8,3080.5,7.19354384]
[1763310873650,0.002,3080.8,3080.7,0.1282]
[1763310874080,0.50935246,3081.4,3080.7,0.5917]
[1763310874277,1.464,3081.9,3081.1,7.19354384]
[1763310874477,1.464,3081.9,3081.2,0.472]
[1763310874892,1.464,3083.3,3081.8,0.1129]
[1763310875040,0.4957,3083.4,3081.8,0.1129]
[1763310875481,0.4957,3083.4,3081.8,0.5849]
[1763310875641,0.4957,3083.4,3081.8,0.1129]
[1763310875845,1.9597,3083.4,3081.8,0.1129]
[1763310876086,0.19597,3083.3,3081.8,0.5849]
[1763310876296,0.192,3084.2,3082.3,7.19354384]
[1763310876297,1.656,3083.6,3082.3,7.19354384]
[1763310876586,1.464,3083.6,3082.3,7.19354384]
[1763310876787,1.464,3083.6,3082.4,0.472]
[1763310876958,0.192,3084.2,3082.4,0.472]
[1763310877158,0.192,3084.2,3082.9,7.19354384]
[1763310877159,0.50896202,3083.6,3082.9,7.19354384]
[1763310877372,0.1818,3084.6,3082.9,7.19354384]
[1763310877575,0.50888582,3084.0,3083.5,7.19354384]
[1763310877890,0.192,3085.2,3083.6,1.1337408]
[1763310878099,0.50879313,3084.9,3084.2,7.19354384]
[1763310878384,1.463,3086.0,3084.2,7.19354384]
[1763310878589,0.50871471,3085.2,3084.3,0.472]
[1763310878803,0.50871471,3085.2,3083.7,0.86231619]
[1763310878945,0.4957,3085.9,3083.8,0.68657797]
[1763310879158,0.50873179,3085.0,3084.2,7.19354384]
[1763310879347,0.19587,3085.8,3084.2,7.19354384]
[1763310879586,0.50870917,3085.8,3084.3,0.472]
[1763310879786,0.50870917,3085.8,3084.8,7.19354384]
[1763310879987,0.50870917,3085.8,3084.9,0.472]
[1763310880151,0.50870917,3085.8,3085.4,7.19354384]
[1763310880362,0.50870917,3085.8,3085.4,7.66554384]
[1763310880770,1.465,3086.3,3085.5,1.1337408]
[1763310880974,0.50854315,3086.2,3085.0,7.32174384]
[1763310881147,0.50854315,3086.2,3084.1,0.1282]
[1763310881148,0.19735432,3086.1,3084.1,0.1282]
[1763310881353,0.405504,3084.0,3083.0,0.133]
[1763310881558,0.405504,3084.0,3082.4,7.19354384]
[1763310881790,0.405504,3083.8,3081.6,7.19354384]
[1763310881950,0.405504,3083.8,3081.2,1.23855438]
[1763310881951,0.405504,3083.2,3080.6,0.133]
[1763310882151,0.405504,3083.0,3080.6,0.133]
[1763310882384,0.405504,3082.8,3081.1,7.19354384]
[1763310882883,0.405504,3082.6,3081.1,7.19354384]
[1763310883069,0.405504,3082.6,3080.6,0.133]
[1763310883277,0.4957,3082.7,3080.6,0.133]
[1763310883278,0.405504,3082.4,3080.6,0.133]
[1763310883583,0.405504,3082.4,3080.6,1.2667408]
[1763310883783,0.405504,3082.2,3080.5,7.19354384]
[1763310884288,0.405504,3082.0,3080.5,7.19354384]
[1763310884589,0.405504,3082.0,3080.0,0.472]
[1763310884755,0.405504,3081.8,3079.9,7.19354384]
[1763310885084,0.405504,3081.8,3080.0,1.1337408]
[1763310885284,0.405504,3081.8,3080.0,2.01366926]
[1763310885448,0.405504,3081.6,3080.0,0.87992846]
[1763310885885,0.405504,3081.5,3080.0,0.87992846]
[1763310886090,0.4957,3082.1,3080.5,7.19354384]
[1763310886288,0.1818,3084.1,3081.1,7.19354384]
[1763310886289,1.463,3082.4,3081.1,7.19354384]
[1763310886487,1.463,3082.4,3081.2,1.1337408]
[1763310887154,1.463,3082.4,3080.5,3.24621498]
[1763310887155,0.4957,3082.3,3080.2,0.472]
[1763310887356,0.405504,3082.1,3080.5,1.1337408]
[1763310887867,0.405504,3081.9,3080.5,1.1337408]
[1763310888486,0.405504,3081.9,3080.4,7.19354384]
[1763310888667,0.4957,3081.9,3080.4,7.19354384]
[1763310889090,0.4957,3081.9,3080.5,1.1337408]
[1763310889388,0.405504,3082.1,3080.6,0.87992846]
[1763310889783,0.405504,3082.1,3081.0,7.19354384]
[1763310890087,0.901204,3082.1,3080.5,1.1337408]
[1763310890277,0.901204,3082.1,3080.4,7.19354384]
[1763310890475,0.405504,3081.9,3080.4,7.19354384]
[1763310890991,0.405504,3081.7,3080.4,7.19354384]
[1763310891492,0.587304,3081.6,3080.4,7.19354384]
[1763310892272,0.4957,3082.2,3081.0,7.19354384]
[1763310892482,0.4957,3082.3,3081.0,7.19354384]
[1763310892680,0.50920017,3082.0,3081.1,0.133]
[1763310894007,3.4979448,3081.9,3080.0,7.66554384]
[1763310894162,3.4979448,3081.9,3080.1,2.37229518]
[1763310894363,0.405504,3081.7,3080.1,2.37229518]
[1763310894671,0.405504,3081.5,3080.0,7.19354384]
[1763310895269,0.405504,3081.5,3080.1,1.1337408]
[1763310895496,0.50920017,3082.0,3080.7,1.1337408]
[1763310896396,0.50920017,3082.0,3080.8,0.69075441]
[1763310896602,0.002,3081.9,3081.3,7.19354384]
[1763310896804,0.002,3081.9,3081.4,3.01573643]
[1763310896961,0.002,3081.9,3081.3,7.19354384]
[1763310896962,0.002,3081.9,3081.5,0.69064125]
[1763310897168,0.002,3081.9,3081.3,1.1337408]
[1763310897378,0.002,3081.9,3081.4,0.69153329]
[1763310897707,0.002,3081.9,3081.2,7.19354384]
[1763310898002,0.002,3081.9,3081.3,7.19354384]
[1763310898186,0.002,3081.9,3081.3,7.91289822]
[1763310898418,0.002,3081.9,3081.4,0.69207227]
[1763310898620,0.002,3081.9,3081.3,7.19354384]
[1763310898829,0.002,3081.9,3081.8,0.1129]
[1763310899130,0.002,3082.3,3081.9,1.1337408]
[1763310899332,0.002,3082.3,3082.2,7.19354384]
[1763310899497,0.002,3082.3,3081.8,1.2466408]
[1763310899700,0.002,3082.3,3081.9,0.6921439]
[1763310899898,0.002,3082.3,3081.7,7.19354384]
[1763310900206,0.002,3082.3,3081.4,0.86509901]
[1763310900399,0.002,3082.3,3081.5,0.69247917]
[1763310900595,0.002,3082.3,3081.3,0.1129]
[1763310900826,0.002,3082.3,3081.4,0.69251467]
[1763310901132,0.002,3082.3,3081.3,0.1129]
[1763310901335,0.002,3082.3,3081.4,0.69257754]
[1763310901521,0.002,3082.3,3081.3,0.1129]
[1763310901700,0.002,3082.3,3081.4,0.69275626]
[1763310901900,0.4957,3082.2,3081.0,0.86509901]
[1763310902113,0.405504,3082.1,3081.1,0.69277597]
[1763310902314,0.405504,3082.1,3080.7,7.19354384]
[1763310902640,0.405504,3082.1,3080.6,0.86509901]
[1763310902641,0.405504,3081.9,3080.5,0.1129]
[1763310902931,0.405504,3081.7,3080.5,0.1129]
[1763310904144,0.405504,3081.7,3080.6,0.69331134]
[1763310904343,0.405504,3081.7,3080.5,0.1129]
[1763310904552,0.002,3082.3,3081.3,7.19354384]
[1763310904712,0.002,3082.3,3081.9,7.19354384]
[1763310904914,0.002,3082.3,3082.0,1.19186532]
[1763310905147,0.002,3082.6,3082.0,4.87727902]
[1763310905442,1.463,3084.4,3083.0,1.1337408]
[1763310905653,1.463,3084.4,3083.1,0.69263979]
[1763310905849,0.4718,3084.3,3082.9,7.19354384]
[1763310906136,0.19348,3084.2,3082.9,7.19354384]
[1763310906299,0.19348,3084.2,3083.0,1.1337408]
[1763310906501,0.4718,3085.0,3083.1,0.69247566]
[1763310906700,0.4718,3085.0,3083.2,0.69247566]
[1763310906936,0.4718,3085.0,3082.5,0.86586656]
[1763310907143,1.463,3084.9,3083.1,7.19354384]
[1763310907450,0.68855654,3084.8,3083.2,0.69254749]
[1763310907617,0.68855654,3084.8,3083.3,0.69254749]
[1763310907800,0.90058054,3084.7,3083.4,0.69254749]
[1763310907999,0.49507654,3084.7,3083.2,1.1337408]
[1763310908230,0.49507654,3084.7,3083.3,0.6922579]
[1763310908436,0.4718,3084.6,3082.8,0.86586656]
[1763310908697,0.89533054,3084.5,3082.9,0.69254431]
[1763310908902,0.89533054,3084.5,3082.5,1.99960736]
[1763310909202,1.38091513,3084.4,3083.1,1.1337408]
[1763310909398,1.462,3084.7,3083.2,0.69282776]
[1763310909399,1.9338,3084.7,3083.2,0.69282776]
[1763310909594,1.9338,3084.7,3083.1,1.1337408]
[1763310909595,0.405504,3084.2,3083.1,1.1337408]
[1763310909800,0.405504,3084.2,3082.7,1.1337408]
[1763310910000,0.405504,3084.0,3082.8,0.69289222]
[1763310910247,0.405504,3084.0,3082.9,0.69293002]
[1763310910434,0.405504,3084.0,3083.0,0.69293002]
[1763310910637,0.405504,3084.0,3082.4,7.19354384]
[1763310910639,0.405504,3083.9,3082.4,8.0594104]
[1763310910839,0.405504,3083.9,3082.0,1.15346535]
[1763310911004,0.4718,3084.0,3081.5,0.4989]
[1763310911005,0.405504,3083.7,3081.5,0.86586656]
[1763310911345,0.405504,3083.7,3080.9,0.86586656]
[1763310911346,0.405504,3082.9,3080.9,0.86586656]
[1763310911644,0.405504,3082.9,3081.0,0.69560383]
[1763310911807,0.405504,3082.7,3081.1,0.69560383]
[1763310912002,0.405504,3082.7,3080.8,0.4989]
[1763310912223,0.405504,3082.5,3080.8,0.4989]
[1763310912425,0.6559,3082.6,3081.1,7.19354384]
[1763310912625,0.405504,3082.7,3081.2,1.41490414]
[1763310912826,0.405504,3082.7,3081.3,0.69554976]
[1763310913058,0.4718,3082.6,3081.2,1.85309518]
[1763310913389,0.405504,3082.5,3081.2,1.85309518]
[1763310913531,0.405504,3082.5,3081.2,1.11270758]
[1763310913720,0.405504,3082.5,3080.9,1.36476656]
[1763310913721,0.405504,3082.3,3080.9,0.4989]
[1763310913921,0.405504,3082.3,3081.0,0.69563893]
[1763310914164,0.4718,3082.3,3081.1,0.69563893]
[1763310914326,0.4718,3082.3,3080.9,0.4989]
[1763310914660,0.405504,3082.2,3080.6,0.86586656]
[1763310914966,0.405504,3082.2,3080.5,7.30644384]
[1763310914967,0.405504,3082.2,3080.7,0.69575038]
[1763310915166,0.405504,3082.0,3080.5,7.30644384]
[1763310915323,0.405504,3082.0,3080.6,0.69589152]
[1763310915525,0.405504,3082.0,3080.7,0.69589152]
[1763310915765,0.405504,3082.0,3080.6,1.1337408]
[1763310915966,0.405504,3082.0,3080.5,7.30644384]
[1763310915967,0.405504,3081.9,3080.5,0.1129]
[1763310916423,0.405504,3081.9,3080.4,0.001]
[1763310916424,0.1867,3080.6,3080.4,0.001]
[1763310916624,0.405504,3080.5,3080.4,0.001]
[1763310916922,0.878704,3080.5,3080.4,0.001]
[1763310917790,0.878704,3080.5,3080.0,0.001]
[1763310918093,0.405504,3080.3,3079.7,0.001]
[1763310918555,0.405504,3080.5,3079.7,0.001]
[1763310918755,0.405504,3080.5,3079.6,0.001]
[1763310918756,0.405504,3080.1,3079.6,0.001]
[1763310918967,0.405504,3080.1,3077.4,0.499]
[1763310919171,0.4732,3080.2,3077.4,0.499]
[1763310919172,0.405504,3079.9,3077.5,0.379]
[1763310919369,0.405504,3079.7,3077.5,0.379]
[1763310919696,1.463,3080.0,3077.8,0.86586656]
[1763310919878,1.463,3080.0,3077.9,0.379]
[1763310920191,0.405504,3079.8,3077.9,0.379]
[1763310920355,0.405504,3079.9,3077.9,0.379]
[1763310920551,0.5923544,3079.9,3077.9,0.379]
[1763310920977,0.5923544,3079.9,3078.1,1.1337408]
[1763310921462,0.5923544,3079.9,3078.2,0.5141]
[1763310921788,0.405504,3079.5,3078.2,0.5141]
[1763310921993,0.405504,3079.5,3078.3,0.379]
[1763310922197,0.4732,3080.3,3079.4,0.133]
[1763310922363,1.463,3080.7,3078.3,0.379]
[1763310922364,0.405504,3079.8,3078.3,0.379]
[1763310922690,0.405504,3079.8,3078.3,0.09004942]
[1763310922878,0.405504,3079.6,3078.2,0.1351]